[Event "SRB-chT Men 1st League 2019"]
[Site "Subotica"]
[Date "2019.08.27"]
[Round "6.5"]
[White "Lazic, Miroljub"]
[Black "Budisavljevic, Luka"]
[Result "1/2-1/2"]
[ECO "A07"]
[WhiteElo "2387"]
[BlackElo "2359"]
[Annotator "NA"]
[PlyCount "93"]
[EventDate "2019.08.23"]
[EventType "team-tourn"]
[EventCountry "SRB"]
[SourceTitle "playchess.com"]
[Source "ChessBase"]
[SourceQuality "1"]
[TimeControl "40/5400+30:1800+30"]

1. g3 {[%emt 0:00:00]} d5 {[%emt 0:01:05]} 2. Nf3 {[%emt 0:00:00]} c6 {[%emt 0:00:11]} 3. Bg2 {[%emt 0:00:23]} Bg4 {[%emt 0:00:13]} 4. O-O {[%emt 0:01:23]} Nd7 {[%emt 0:00:05]} 5. d3 {[%emt 0:00:18]} e6 {[%emt 0:00:21]} 6. Nbd2 {[%emt 0:00:25]} Bd6 {[%emt 0:00:29]} 7. h3 {[%emt 0:00:58]} Bh5 {[%emt 0:00:04]} 8. e4 {[%emt 0:00:39]} Ne7 {[%emt 0:00:16]} 9. Qe1 {[%emt 0:00:31]} O-O {[%emt 0:00:15]} 10. a3 {[%emt 0:06:29]} a5 {[%emt 0:02:36]} 11. b3 {[%emt 0:02:07]} e5 {[%emt 0:02:57]} 12. Bb2 {[%emt 0:02:26]} Qc7 {[%emt 0:20:10]} 13. Rc1 {[%emt 0:20:13]} Rfe8 {[%emt 0:05:54]} 14. exd5 {[%emt 0:09:06]} cxd5 {[%emt 0:00:58]} 15. c4 {[%emt 0:01:00]} Qb8 {[%emt 0:09:36]} 16. cxd5 {[%emt 0:02:49]} Nc5 {[%emt 0:13:31]} 17. Qe2 {[%emt 0:36:06]} Nxd5 {[%emt 0:00:04]} 18. Rfe1 {[%emt 0:05:06]} Bg6 {[%emt 0:13:57]} 19. Nh4 {[%emt 0:03:08]} Bxd3 {[%emt 0:01:36]} 20. Qf3 {[%emt 0:00:02]} e4 {[%emt 0:04:21]} 21. Qg4 {[%emt 0:00:28]} Be5 {[%emt 0:00:49]} 22. Bxe5 {[%emt 0:00:21]} Rxe5 {[%emt 0:00:07]} 23. Nf5 {[%emt 0:03:27]} g6 {[%emt 0:08:27]} 24. Nd4 {[%emt 0:03:59]} Nf6 {[%emt 0:03:24]} 25. Qf4 {[%emt 0:00:25]} g5 {[%emt 0:06:07]} 26. Qxf6 {[%emt 0:00:13]} Ra6 {[%emt 0:00:03]} 27. Qxa6 {[%emt 0:00:48]} Bxa6 {[%emt 0:01:06]} 28. Bxe4 {[%emt 0:00:28]} Nd3 {[%emt 0:04:04]} 29. Bxd3 {[%emt 0:00:06]} Bxd3 {[%emt 0:00:12]} 30. N2f3 {[%emt 0:00:06]} Rd5 {[%emt 0:01:01]} 31. Rc3 {[%emt 0:01:16]} Bg6 {[%emt 0:00:11]} 32. Rce3 {[%emt 0:00:42]} Qd6 {[%emt 0:00:13]} 33. Ne2 {[%emt 0:00:30]} h6 {[%emt 0:01:28]} 34. a4 {[%emt 0:00:28]} Rd1 {[%emt 0:00:32]} 35. Rxd1 {[%emt 0:00:23]} Qxd1+ {[%emt 0:00:01]} 36. Kg2 {[%emt 0:00:10]} Qd5 {[%emt 0:00:23]} 37. g4 {[%emt 0:00:33]} Kg7 {[%emt 0:01:09]} 38. Ng3 {[%emt 0:00:05]} Kf8 {[%emt 0:00:30]} 39. Rc3 {[%emt 0:00:20]} Ke7 {[%emt 0:00:30]} 40. Kh2 {[%emt 0:00:00]} Qd6 {[%emt 0:00:00]} 41. Re3+ {[%emt 0:01:25]} Kf6 {[%emt 0:03:40]} 42. Kg2 {[%emt 0:04:48]} Qd5 {[%emt 0:01:07]} 43. Rc3 {[%emt 0:00:47]} Kg7 {[%emt 0:01:52]} 44. Kh2 {[%emt 0:00:58]} Qd6 {[%emt 0:01:13]} 45. Kg2 {[%emt 0:00:28]} Qd5 {[%emt 0:03:14]} 46. Kh2 {[%emt 0:00:11]} Qd6 {[%emt 0:02:43]} 47. Kg2 {[%emt 0:01:01]} 1/2-1/2

[Event "SRB-chT Men 1st League 2019"]
[Site "Subotica"]
[Date "2019.08.27"]
[Round "6.6"]
[White "Besedes, Danilo"]
[Black "Laketic, Gojko"]
[Result "1/2-1/2"]
[ECO "E15"]
[WhiteElo "2249"]
[BlackElo "2376"]
[Annotator "NA"]
[PlyCount "106"]
[EventDate "2019.08.23"]
[EventType "team-tourn"]
[EventCountry "SRB"]
[SourceTitle "playchess.com"]
[Source "ChessBase"]
[SourceQuality "1"]
[TimeControl "40/5400+30:1800+30"]

1. d4 {[%emt 0:00:00]} Nf6 {[%emt 0:03:07]} 2. Nf3 {[%emt 0:00:00]} e6 {[%emt 0:01:33]} 3. c4 {[%emt 0:06:22]} b6 {[%emt 0:08:21]} 4. g3 {[%emt 0:03:00]} Ba6 {[%emt 0:01:48]} 5. b3 {[%emt 0:06:47]} Bb4+ {[%emt 0:00:48]} 6. Bd2 {[%emt 0:00:26]} Be7 {[%emt 0:00:15]} 7. Bg2 {[%emt 0:00:23]} Bb7 {[%emt 0:06:05]} 8. O-O {[%emt 0:01:42]} O-O {[%emt 0:08:33]} 9. Nc3 {[%emt 0:02:27]} d5 {[%emt 0:15:04]} 10. cxd5 {[%emt 0:02:59]} exd5 {[%emt 0:01:17]} 11. Qc2 {[%emt 0:00:32]} Re8 {[%emt 0:07:39]} 12. Rad1 {[%emt 0:04:35]} Nbd7 {[%emt 0:02:17]} 13. Bf4 {[%emt 0:05:44]} c6 {[%emt 0:13:24]} 14. Ne5 {[%emt 0:10:16]} Nf8 {[%emt 0:00:47]} 15. e4 {[%emt 0:03:39]} Ne6 {[%emt 0:04:43]} 16. Be3 {[%emt 0:00:52]} Bb4 {[%emt 0:01:00]} 17. Ne2 {[%emt 0:25:42]} Rc8 {[%emt 0:02:28]} 18. Nd3 {[%emt 0:00:43]} dxe4 {[%emt 0:03:21]} 19. Nxb4 {[%emt 0:01:33]} a5 {[%emt 0:00:06]} 20. Nc3 {[%emt 0:01:52]} axb4 {[%emt 0:01:17]} 21. Nxe4 {[%emt 0:00:33]} Nd5 {[%emt 0:00:19]} 22. Qd2 {[%emt 0:14:52]} f5 {[%emt 0:08:29]} 23. Ng5 {[%emt 0:02:10]} Nxe3 {[%emt 0:02:13]} 24. Nxe6 {[%emt 0:00:27]} Nxf1 {[%emt 0:01:08]} 25. Nxd8 {[%emt 0:00:19]} Nxd2 {[%emt 0:00:33]} 26. Nxb7 {[%emt 0:00:06]} Re2 {[%emt 0:02:06]} 27. Nd6 {[%emt 0:01:07]} Rd8 {[%emt 0:03:56]} 28. Nxf5 {[%emt 0:01:56]} Kf8 {[%emt 0:00:02]} 29. d5 {[%emt 0:01:08]} Ne4 {[%emt 0:00:50]} 30. Nd4 {[%emt 0:00:35]} Rxd5 {[%emt 0:00:34]} 31. Bf3 {[%emt 0:00:33]} Rxa2 {[%emt 0:00:56]} 32. Bxe4 {[%emt 0:00:14]} Rd6 {[%emt 0:00:01]} 33. Rd3 {[%emt 0:01:55]} c5 {[%emt 0:00:30]} 34. Rf3+ {[%emt 0:00:21]} Rf6 {[%emt 0:00:38]} 35. Ne6+ {[%emt 0:00:25]} Kf7 {[%emt 0:00:45]} 36. Nf4 {[%emt 0:00:45]} g5 {[%emt 0:00:19]} 37. Nd5 {[%emt 0:00:22]} Rxf3 {[%emt 0:00:08]} 38. Bxf3 {[%emt 0:00:05]} b5 {[%emt 0:00:57]} 39. Nc7 {[%emt 0:01:09]} Ra5 {[%emt 0:00:29]} 40. Be2 {[%emt 0:00:00]} c4 {[%emt 0:00:00]} 41. bxc4 {[%emt 0:01:37]} b3 {[%emt 0:10:33]} 42. Nxb5 {[%emt 0:02:03]} b2 {[%emt 0:02:12]} 43. Bd3 {[%emt 0:00:04]} Ra1+ {[%emt 0:00:30]} 44. Kg2 {[%emt 0:00:02]} b1=Q {[%emt 0:00:21]} 45. Bxb1 {[%emt 0:00:02]} Rxb1 {[%emt 0:00:08]} 46. Nd4 {[%emt 0:00:06]} Rc1 {[%emt 0:02:01]} 47. Nf5 {[%emt 0:00:08]} Ke6 {[%emt 0:02:35]} 48. Ne3 {[%emt 0:00:03]} Ke5 {[%emt 0:00:30]} 49. Kf3 {[%emt 0:00:21]} h5 {[%emt 0:00:18]} 50. h3 {[%emt 0:03:52]} Rg1 {[%emt 0:02:41]} 51. Nc2 {[%emt 0:01:33]} Rh1 {[%emt 0:01:28]} 52. Kg2 {[%emt 0:00:39]} Rc1 {[%emt 0:00:11]} 53. Ne3 {[%emt 0:00:06]} Ra1 {[%emt 0:04:05]} 1/2-1/2

[Event "SRB-chT Men 1st League 2019"]
[Site "Subotica"]
[Date "2019.08.27"]
[Round "6.7"]
[White "Stojanovic, Dalibor"]
[Black "Mastrovasilis, Athanasios"]
[Result "1/2-1/2"]
[ECO "C67"]
[WhiteElo "2502"]
[BlackElo "2518"]
[Annotator "ChessBase"]
[PlyCount "29"]
[EventDate "2019.08.23"]
[EventType "team-tourn"]
[EventCountry "SRB"]
[SourceTitle "playchess.com"]
[Source "ChessBase"]
[SourceQuality "1"]
[TimeControl "40/5400+30:1800+30"]

1. e4 {[%emt 0:00:00]} e5 {[%emt 0:00:27]} 2. Nf3 {[%emt 0:01:13]} Nc6 {[%emt 0:00:57]} 3. Bb5 {[%emt 0:01:34]} Nf6 {[%emt 0:02:07]} 4. O-O {[%emt 0:06:01]} Nxe4 {[%emt 0:00:43]} 5. Re1 {[%emt 0:00:57]} Nd6 {[%emt 0:00:14]} 6. Nxe5 {[%emt 0:00:09]} Be7 {[%emt 0:00:13]} 7. Bf1 {[%emt 0:00:43]} Nxe5 {[%emt 0:00:39]} 8. Rxe5 {[%emt 0:02:16]} O-O {[%emt 0:00:17]} 9. d4 {[%emt 0:01:52]} Ne8 {[%emt 0:01:21]} 10. Re1 {[%emt 0:02:15]} d5 {[%emt 0:02:52]} 11. Bf4 {[%emt 0:03:05]} Bd6 {[%emt 0:05:51]} 12. Bxd6 {[%emt 0:01:52]} Nxd6 {[%emt 0:01:40]} 13. Bd3 {[%emt 0:00:58]} Bf5 {[%emt 0:03:47]} 14. Bxf5 {[%emt 0:01:37]} Nxf5 {[%emt 0:00:13]} 15. c3 {[%emt 0:00:04]} 1/2-1/2

[Event "SRB-chT Men 1st League 2019"]
[Site "Subotica"]
[Date "2019.08.27"]
[Round "6.8"]
[White "Pavlovic, Milos"]
[Black "Djordjevic, Vuk"]
[Result "1/2-1/2"]
[ECO "E05"]
[WhiteElo "2502"]
[BlackElo "2368"]
[Annotator "ChessBase"]
[PlyCount "71"]
[EventDate "2019.08.23"]
[EventType "team-tourn"]
[EventCountry "SRB"]
[SourceTitle "playchess.com"]
[Source "ChessBase"]
[SourceQuality "1"]
[TimeControl "40/5400+30:1800+30"]

1. Nf3 {[%emt 0:00:00]} Nf6 {[%emt 0:00:00]} 2. g3 {[%emt 0:00:00]} d5 {[%emt 0:00:00]} 3. Bg2 {[%emt 0:00:04]} e6 {[%emt 0:00:11]} 4. O-O {[%emt 0:00:17]} Be7 {[%emt 0:00:16]} 5. c4 {[%emt 0:02:08]} O-O {[%emt 0:00:39]} 6. d4 {[%emt 0:00:06]} dxc4 {[%emt 0:00:09]} 7. Qc2 {[%emt 0:00:44]} a6 {[%emt 0:00:08]} 8. a4 {[%emt 0:00:05]} Bd7 {[%emt 0:00:08]} 9. Qxc4 {[%emt 0:00:13]} Bc6 {[%emt 0:00:33]} 10. Bg5 {[%emt 0:00:12]} Bd5 {[%emt 0:02:53]} 11. Qc2 {[%emt 0:00:33]} Be4 {[%emt 0:00:35]} 12. Qc1 {[%emt 0:03:14]} h6 {[%emt 0:11:56]} 13. Bxf6 {[%emt 0:00:13]} Bxf6 {[%emt 0:00:26]} 14. Rd1 {[%emt 0:00:11]} a5 {[%emt 0:03:33]} 15. Nbd2 {[%emt 0:01:05]} Bxf3 {[%emt 0:01:15]} 16. Bxf3 {[%emt 0:00:06]} c6 {[%emt 0:01:31]} 17. e3 {[%emt 0:00:24]} Na6 {[%emt 0:04:18]} 18. Nc4 {[%emt 0:01:02]} Qc7 {[%emt 0:04:01]} 19. Qd2 {[%emt 0:00:51]} Nb4 {[%emt 0:01:21]} 20. Qe2 {[%emt 0:01:09]} Rfd8 {[%emt 0:03:49]} 21. h4 {[%emt 0:23:42]} e5 {[%emt 0:21:36]} 22. dxe5 {[%emt 0:00:22]} Bxe5 {[%emt 0:00:08]} 23. Be4 {[%emt 0:17:40]} Qe7 {[%emt 0:08:49]} 24. Qg4 {[%emt 0:01:55]} Bc7 {[%emt 0:02:13]} 25. h5 {[%emt 0:03:56]} Nd5 {[%emt 0:07:02]} 26. Qf5 {[%emt 0:31:19]} Nf6 {[%emt 0:00:25]} 27. Bf3 {[%emt 0:00:06]} Qb4 {[%emt 0:03:27]} 28. Qc2 {[%emt 0:00:12]} Rab8 {[%emt 0:04:04]} 29. b3 {[%emt 0:04:39]} Qc5 {[%emt 0:01:49]} 30. Qe2 {[%emt 0:02:59]} Rxd1+ 31. Rxd1 {[%emt 0:00:01]} b5 {[%emt 0:10:59]} 32. Nb2 {[%emt 0:00:56]} Qc3 {[%emt 0:01:03]} 33. Rd3 {[%emt 0:00:17]} Qc1+ {[%emt 0:00:11]} 34. Rd1 {[%emt 0:00:36]} Qc3 {[%emt 0:00:06]} 35. Rd3 {[%emt 0:00:44]} Qc1+ {[%emt 0:00:10]} 36. Rd1 {[%emt 0:04:26]} 1/2-1/2

[Event "SRB-chT Men 1st League 2019"]
[Site "Subotica"]
[Date "2019.08.27"]
[Round "6.9"]
[White "Sarenac, Ivan"]
[Black "Savic, Miodrag R"]
[Result "1-0"]
[ECO "B01"]
[WhiteElo "2381"]
[BlackElo "2472"]
[Annotator "ChessBase"]
[PlyCount "133"]
[EventDate "2019.08.23"]
[EventType "team-tourn"]
[EventCountry "SRB"]
[SourceTitle "playchess.com"]
[Source "ChessBase"]
[SourceQuality "1"]
[TimeControl "40/5400+30:1800+30"]

1. e4 {[%emt 0:00:00]} d5 {[%emt 0:00:00]} 2. exd5 {[%emt 0:00:00]} Qxd5 {[%emt 0:00:00]} 3. Nc3 {[%emt 0:00:00]} Qd8 {[%emt 0:00:20]} 4. d4 {[%emt 0:00:21]} Nf6 {[%emt 0:00:10]} 5. Bc4 {[%emt 0:00:25]} a6 {[%emt 0:00:49]} 6. Nf3 {[%emt 0:00:23]} b5 {[%emt 0:06:12]} 7. Bd3 {[%emt 0:00:18]} Bb7 {[%emt 0:00:45]} 8. Qe2 {[%emt 0:00:10]} e6 {[%emt 0:06:42]} 9. Ne4 {[%emt 0:01:18]} Qd5 {[%emt 0:10:11]} 10. Nxf6+ {[%emt 0:11:01]} gxf6 {[%emt 0:00:55]} 11. Bf4 {[%emt 0:00:05]} Bd6 {[%emt 0:05:29]} 12. Bg3 {[%emt 0:08:34]} h5 {[%emt 0:07:05]} 13. a4 {[%emt 0:05:48]} b4 {[%emt 0:05:59]} 14. c4 {[%emt 0:00:36]} bxc3 {[%emt 0:03:43]} 15. bxc3 {[%emt 0:00:03]} Nd7 {[%emt 0:03:25]} 16. O-O {[%emt 0:05:58]} h4 {[%emt 0:06:01]} 17. c4 {[%emt 0:04:12]} Qh5 {[%emt 0:07:24]} 18. Nxh4 {[%emt 0:00:15]} Qxe2 {[%emt 0:05:57]} 19. Bxe2 {[%emt 0:00:05]} Bxg3 {[%emt 0:13:28]} 20. fxg3 {[%emt 0:06:18]} a5 {[%emt 0:01:19]} 21. Nf3 {[%emt 0:15:12]} Ke7 {[%emt 0:00:28]} 22. g4 {[%emt 0:08:47]} Rab8 {[%emt 0:03:03]} 23. Rfb1 {[%emt 0:07:32]} Ba6 {[%emt 0:01:01]} 24. Kf2 {[%emt 0:00:23]} c5 {[%emt 0:01:35]} 25. h3 {[%emt 0:03:06]} Rhc8 {[%emt 0:00:05]} 26. dxc5 {[%emt 0:02:37]} Nxc5 {[%emt 0:03:45]} 27. Rxb8 {[%emt 0:00:28]} Rxb8 {[%emt 0:00:01]} 28. Nd4 {[%emt 0:00:06]} Rb2 {[%emt 0:00:43]} 29. Ke3 {[%emt 0:01:40]} e5 {[%emt 0:05:06]} 30. Nf5+ {[%emt 0:02:51]} Ke8 {[%emt 0:00:55]} 31. Bf3 {[%emt 0:02:22]} Rb3+ {[%emt 0:00:33]} 32. Kf2 {[%emt 0:00:28]} Kf8 {[%emt 0:01:12]} 33. Rd1 {[%emt 0:00:20]} Nd3+ {[%emt 0:00:16]} 34. Kg1 {[%emt 0:01:09]} Bxc4 {[%emt 0:00:01]} 35. Be4 {[%emt 0:03:05]} Rc3 {[%emt 0:00:02]} 36. Kh2 {[%emt 0:00:40]} Kg8 {[%emt 0:00:19]} 37. Nh6+ {[%emt 0:07:17]} Kg7 {[%emt 0:00:06]} 38. Nf5+ {[%emt 0:00:01]} Kg8 {[%emt 0:00:00]} 39. Ne3 {[%emt 0:00:06]} Nc5 {[%emt 0:01:53]} 40. Rd8+ {[%emt 0:00:00]} Kg7 {[%emt 0:00:00]} 41. Nf5+ {[%emt 0:03:49]} Kh7 {[%emt 0:01:56]} 42. Nd6+ {[%emt 0:01:34]} Kh6 {[%emt 0:09:36]} 43. Bf5 {[%emt 0:06:51]} Be6 {[%emt 0:01:57]} 44. Ra8 {[%emt 0:07:35]} Bxf5 {[%emt 0:08:02]} 45. Nxf5+ {[%emt 0:01:42]} Kh7 {[%emt 0:02:45]} 46. Rxa5 {[%emt 0:01:10]} e4 {[%emt 0:00:25]} 47. Ra7 {[%emt 0:01:02]} Kg6 {[%emt 0:00:24]} 48. Ra8 {[%emt 0:00:40]} Ne6 {[%emt 0:00:37]} 49. Rh8 {[%emt 0:01:38]} Kg5 {[%emt 0:04:15]} 50. g3 {[%emt 0:01:27]} Rc2+ {[%emt 0:00:22]} 51. Kg1 {[%emt 0:00:46]} Rc1+ {[%emt 0:00:47]} 52. Kf2 {[%emt 0:01:17]} Nf4 {[%emt 0:01:33]} 53. gxf4+ {[%emt 0:00:30]} Kxf4 {[%emt 0:00:01]} 54. Ne3 {[%emt 0:00:20]} Ra1 {[%emt 0:00:16]} 55. Ng2+ {[%emt 0:00:41]} Ke5 {[%emt 0:00:18]} 56. Re8+ {[%emt 0:01:00]} Kd4 {[%emt 0:00:01]} 57. Rd8+ {[%emt 0:02:51]} Ke5 {[%emt 0:00:01]} 58. Ne3 {[%emt 0:00:44]} Rxa4 {[%emt 0:03:14]} 59. Rd5+ {[%emt 0:00:15]} Ke6 {[%emt 0:00:02]} 60. Rf5 {[%emt 0:01:33]} Ra3 {[%emt 0:01:28]} 61. h4 {[%emt 0:03:17]} Ra1 {[%emt 0:00:58]} 62. Kg3 {[%emt 0:00:31]} Ke7 {[%emt 0:00:14]} 63. Nd5+ {[%emt 0:00:41]} Ke6 {[%emt 0:00:03]} 64. Ne3 {[%emt 0:00:12]} Ke7 {[%emt 0:00:14]} 65. Kf4 {[%emt 0:00:05]} Kf8 {[%emt 0:00:10]} 66. Rxf6 {[%emt 0:00:19]} Rf1+ {[%emt 0:00:07]} 67. Nxf1 {[%emt 0:07:00]} 1-0

[Event "SRB-chT Men 1st League 2019"]
[Site "Subotica"]
[Date "2019.08.27"]
[Round "6.10"]
[White "Todorovic, Goran M"]
[Black "Blesic, Vaso"]
[Result "0-1"]
[ECO "B11"]
[WhiteElo "2415"]
[BlackElo "2382"]
[Annotator "NA"]
[PlyCount "56"]
[EventDate "2019.08.23"]
[EventType "team-tourn"]
[EventCountry "SRB"]
[SourceTitle "playchess.com"]
[Source "ChessBase"]
[SourceQuality "1"]
[TimeControl "40/5400+30:1800+30"]

1. e4 {[%emt 0:00:00]} c6 {[%emt 0:01:16]} 2. Nc3 {[%emt 0:00:00]} d5 {[%emt 0:00:27]} 3. Nf3 {[%emt 0:00:00]} Bg4 {[%emt 0:03:33]} 4. d4 {[%emt 0:00:33]} e6 {[%emt 0:00:50]} 5. h3 {[%emt 0:01:21]} Bh5 {[%emt 0:00:46]} 6. g4 {[%emt 0:01:24]} dxe4 {[%emt 0:02:26]} 7. gxh5 {[%emt 0:04:46]} exf3 {[%emt 0:00:11]} 8. Be3 {[%emt 0:02:49]} Nd7 {[%emt 0:14:06]} 9. Qxf3 {[%emt 0:02:50]} Qa5 {[%emt 0:00:51]} 10. Rg1 {[%emt 0:11:12]} Ngf6 {[%emt 0:07:14]} 11. Rg5 {[%emt 0:04:43]} Nd5 {[%emt 0:00:43]} 12. Bd2 {[%emt 0:00:14]} Qb6 {[%emt 0:01:40]} 13. O-O-O {[%emt 0:07:33]} h6 {[%emt 0:04:05]} 14. Rxd5 {[%emt 0:20:22]} cxd5 {[%emt 0:00:24]} 15. Bb5 {[%emt 0:00:14]} Be7 {[%emt 0:15:03]} 16. Qg4 {[%emt 0:13:18]} O-O-O {[%emt 0:07:00]} 17. Qxg7 {[%emt 0:00:54]} a6 {[%emt 0:00:55]} 18. Ba4 {[%emt 0:04:03]} Rdf8 {[%emt 0:02:26]} 19. Bf4 {[%emt 0:08:42]} Qd8 {[%emt 0:03:12]} 20. Bxd7+ {[%emt 0:15:02]} Kxd7 {[%emt 0:32:52]} 21. Nxd5 {[%emt 0:00:30]} exd5 {[%emt 0:00:30]} 22. Qe5 {[%emt 0:00:30]} Kc6 {[%emt 0:00:30]} 23. Qe3 {[%emt 0:00:30]} Kb6 {[%emt 0:00:30]} 24. Bxh6 {[%emt 0:00:30]} Re8 {[%emt 0:00:30]} 25. Kb1 {[%emt 0:00:30]} Ka7 {[%emt 0:00:30]} 26. Bg7 {[%emt 0:00:30]} Bf6 {[%emt 0:00:30]} 27. Bxh8 {[%emt 0:00:30]} Rxe3 {[%emt 0:00:30]} 28. Bxf6 {[%emt 0:00:30]} Qxf6 {[%emt 0:00:30]} 0-1

[Event "SRB-chT Men 1st League 2019"]
[Site "Subotica"]
[Date "2019.08.27"]
[Round "6.11"]
[White "Rajkovic, Mladen"]
[Black "Markovic, Miroslav"]
[Result "0-1"]
[ECO "B15"]
[WhiteElo "2371"]
[BlackElo "2394"]
[Annotator "NA"]
[PlyCount "106"]
[EventDate "2019.08.23"]
[EventType "team-tourn"]
[EventCountry "SRB"]
[SourceTitle "playchess.com"]
[Source "ChessBase"]
[SourceQuality "1"]
[TimeControl "40/5400+30:1800+30"]

1. e4 {[%emt 1:30:30]} c6 {[%emt 1:30:30]} 2. Nc3 {[%emt 0:00:30]} d5 {[%emt 0:00:30]} 3. Nf3 {[%emt 0:00:30]} dxe4 {[%emt 0:00:30]} 4. Nxe4 {[%emt 0:00:30]} Nf6 {[%emt 0:00:30]} 5. Nxf6+ {[%emt 0:00:30]} exf6 {[%emt 0:00:30]} 6. d4 {[%emt 0:00:30]} Bd6 {[%emt 0:00:30]} 7. Bd3 {[%emt 0:00:30]} O-O {[%emt 0:00:30]} 8. O-O {[%emt 0:00:30]} Bg4 {[%emt 0:00:30]} 9. h3 {[%emt 0:00:30]} Bh5 {[%emt 0:00:30]} 10. g4 {[%emt 0:00:30]} Bg6 {[%emt 0:00:30]} 11. Nh4 {[%emt 0:00:30]} Bc7 {[%emt 0:00:30]} 12. Nxg6 {[%emt 0:00:30]} hxg6 {[%emt 0:00:30]} 13. c3 {[%emt 0:00:30]} Qd6 {[%emt 0:00:30]} 14. f4 {[%emt 0:00:30]} Re8 {[%emt 0:00:30]} 15. Qf3 {[%emt 0:00:30]} c5 {[%emt 0:00:30]} 16. Bb5 {[%emt 0:00:30]} Nc6 {[%emt 0:00:30]} 17. d5 {[%emt 0:00:30]} c4 {[%emt 0:00:30]} 18. Kg2 {[%emt 0:00:30]} Qc5 {[%emt 0:00:30]} 19. Bxc4 {[%emt 0:00:30]} Qxc4 {[%emt 0:00:30]} 20. dxc6 {[%emt 0:00:30]} bxc6 {[%emt 0:00:30]} 21. Be3 {[%emt 0:00:30]} Rad8 {[%emt 0:00:30]} 22. Rfd1 {[%emt 0:00:30]} Bb6 {[%emt 0:00:30]} 23. Rxd8 {[%emt 0:00:30]} Rxd8 {[%emt 0:00:30]} 24. Bxb6 {[%emt 0:00:30]} axb6 {[%emt 0:00:30]} 25. Rd1 {[%emt 0:00:30]} Rxd1 {[%emt 0:00:30]} 26. Qxd1 {[%emt 0:00:30]} b5 {[%emt 0:00:30]} 27. Qd8+ {[%emt 0:00:30]} Kh7 {[%emt 0:00:30]} 28. Qa8 {[%emt 0:00:30]} f5 {[%emt 0:00:30]} 29. gxf5 {[%emt 0:00:30]} gxf5 {[%emt 0:00:30]} 30. Kf3 {[%emt 0:00:30]} Qe4+ {[%emt 0:00:30]} 31. Kg3 {[%emt 0:00:30]} Qe1+ {[%emt 0:00:30]} 32. Kg2 {[%emt 0:00:30]} Qd2+ {[%emt 0:00:30]} 33. Kg3 {[%emt 0:00:30]} Qe3+ {[%emt 0:00:30]} 34. Kg2 {[%emt 0:00:30]} Qxf4 {[%emt 0:00:30]} 35. Qxc6 {[%emt 0:00:30]} Qd2+ {[%emt 0:00:30]} 36. Kg3 {[%emt 0:00:30]} Qxb2 {[%emt 0:00:30]} 37. Qc5 {[%emt 0:00:30]} Qb1 {[%emt 0:00:30]} 38. Qe5 {[%emt 0:00:30]} Qd3+ {[%emt 0:00:30]} 39. Kf2 {[%emt 0:00:30]} f6 {[%emt 0:00:30]} 40. Qe8 {[%emt 0:00:30]} Qd2+ {[%emt 0:00:30]} 41. Kg1 {[%emt 0:30:30]} Qg5+ {[%emt 0:30:30]} 42. Kh1 {[%emt 0:00:30]} f4 {[%emt 0:00:30]} 43. c4 {[%emt 0:00:30]} bxc4 {[%emt 0:00:30]} 44. Qe4+ {[%emt 0:00:30]} f5 {[%emt 0:00:30]} 45. Qxc4 {[%emt 0:00:30]} f3 {[%emt 0:00:30]} 46. Qc2 {[%emt 0:00:30]} Qf4 {[%emt 0:00:30]} 47. Qf2 {[%emt 0:00:30]} g5 {[%emt 0:00:30]} 48. Qa7+ {[%emt 0:00:30]} Kg6 {[%emt 0:00:30]} 49. Qa6+ {[%emt 0:00:30]} Kh5 {[%emt 0:00:30]} 50. Qc8 {[%emt 0:00:30]} Kh4 {[%emt 0:00:30]} 51. Qh8+ {[%emt 0:00:30]} Kg3 {[%emt 0:00:30]} 52. Qc3 {[%emt 0:00:30]} Qe4 {[%emt 0:00:30]} 53. a4 {[%emt 0:00:30]} Qb1+ {[%emt 0:00:30]} 0-1

[Event "SRB-chT Men 1st League 2019"]
[Site "Subotica"]
[Date "2019.08.27"]
[Round "6.12"]
[White "Drazic, Sinisa"]
[Black "Munizaba, Slobodan"]
[Result "1/2-1/2"]
[ECO "A44"]
[WhiteElo "2379"]
[BlackElo "2428"]
[Annotator "NA"]
[PlyCount "107"]
[EventDate "2019.08.23"]
[EventType "team-tourn"]
[EventCountry "SRB"]
[SourceTitle "playchess.com"]
[Source "ChessBase"]
[SourceQuality "1"]
[TimeControl "40/5400+30:1800+30"]

1. d4 {[%emt 0:00:00]} c5 {[%emt 0:04:24]} 2. d5 {[%emt 0:00:00]} e5 {[%emt 0:00:07]} 3. e4 {[%emt 0:00:00]} a6 {[%emt 0:00:19]} 4. Nf3 {[%emt 0:00:12]} d6 {[%emt 0:00:12]} 5. Be2 {[%emt 0:00:26]} g6 {[%emt 0:04:29]} 6. a4 {[%emt 0:01:49]} h5 {[%emt 0:02:27]} 7. h4 {[%emt 0:01:25]} Bh6 {[%emt 0:02:00]} 8. Nc3 {[%emt 0:02:01]} Bxc1 {[%emt 0:06:27]} 9. Qxc1 {[%emt 0:00:03]} Bg4 {[%emt 0:00:19]} 10. Ng5 {[%emt 0:00:54]} Bxe2 {[%emt 0:00:36]} 11. Kxe2 {[%emt 0:03:56]} Nd7 {[%emt 0:01:09]} 12. a5 {[%emt 0:02:01]} Ngf6 {[%emt 0:03:37]} 13. Nd1 {[%emt 0:05:01]} Nh7 {[%emt 0:13:21]} 14. Nxh7 {[%emt 0:08:31]} Rxh7 {[%emt 0:00:05]} 15. Qg5 {[%emt 0:00:12]} Qxg5 {[%emt 0:03:49]} 16. hxg5 {[%emt 0:00:07]} f6 {[%emt 0:00:06]} 17. gxf6 {[%emt 0:00:16]} Nxf6 {[%emt 0:00:05]} 18. f3 {[%emt 0:00:49]} h4 {[%emt 0:06:56]} 19. Ne3 {[%emt 0:00:08]} Nh5 {[%emt 0:00:18]} 20. Kd2 {[%emt 0:01:37]} Ng3 {[%emt 0:03:04]} 21. Rh3 {[%emt 0:03:43]} O-O-O {[%emt 0:06:51]} 22. b4 {[%emt 0:01:08]} cxb4 {[%emt 0:00:16]} 23. Rb1 {[%emt 0:01:00]} g5 {[%emt 0:00:59]} 24. Rxb4 {[%emt 0:00:14]} Rc7 {[%emt 0:01:05]} 25. c4 {[%emt 0:03:15]} Rc5 {[%emt 0:02:36]} 26. Ra4 {[%emt 0:00:03]} Kc7 {[%emt 0:00:12]} 27. Kd3 {[%emt 0:00:12]} Rf8 {[%emt 0:03:24]} 28. Ra2 {[%emt 0:02:59]} b6 {[%emt 0:02:13]} 29. axb6+ {[%emt 0:00:54]} Kxb6 {[%emt 0:00:33]} 30. Kc3 {[%emt 0:06:58]} Rfc8 {[%emt 0:07:14]} 31. Kd3 {[%emt 0:10:52]} Ra5 {[%emt 0:06:53]} 32. Rxa5 {[%emt 0:02:12]} Kxa5 {[%emt 0:00:06]} 33. Nf5 {[%emt 0:00:09]} Nxf5 {[%emt 0:02:41]} 34. exf5 {[%emt 0:00:05]} Kb4 {[%emt 0:01:26]} 35. f6 {[%emt 0:08:24]} Rf8 {[%emt 0:05:25]} 36. f4 {[%emt 0:02:11]} exf4 {[%emt 0:05:49]} 37. Rh1 {[%emt 0:03:09]} Kc5 {[%emt 0:02:10]} 38. Ra1 {[%emt 0:00:16]} Rxf6 {[%emt 0:00:10]} 39. Rxa6 {[%emt 0:00:07]} Kb4 {[%emt 0:01:42]} 40. Rb6+ {[%emt 0:00:00]} Ka5 {[%emt 0:00:00]} 41. c5 {[%emt 0:04:25]} f3 {[%emt 0:05:53]} 42. gxf3 {[%emt 0:00:25]} h3 {[%emt 0:15:24]} 43. Rb1 {[%emt 0:05:36]} dxc5 {[%emt 0:02:27]} 44. Kc4 {[%emt 0:00:15]} Rxf3 {[%emt 0:02:46]} 45. d6 {[%emt 0:02:14]} g4 {[%emt 0:01:38]} 46. d7 {[%emt 0:00:21]} Rf8 {[%emt 0:00:49]} 47. Kxc5 {[%emt 0:00:06]} Ka6 {[%emt 0:01:24]} 48. Kc6 {[%emt 0:00:41]} Rf6+ {[%emt 0:07:21]} 49. Kc7 {[%emt 0:00:47]} Rf7 {[%emt 0:00:09]} 50. Kc6 {[%emt 0:00:02]} Rf6+ {[%emt 0:00:08]} 51. Kc5 {[%emt 0:00:13]} Rf8 {[%emt 0:00:08]} 52. Kc6 {[%emt 0:53:36]} Rf6+ 53. Kc7 Rf7 {[%emt 0:02:48]} 54. Rb6+ 1/2-1/2